Cogmind - Beta 15 @@@ ROGUE MODE // 2025.07.30 @ 15:20:29 Player: satan5 Result: Destroyed by AG-82611 with Assembled Focal Cannon Performance ------------- Evolutions (3) 1500 Regions Visited (13) 2600 Robots Destroyed (176) 880 Value Destroyed (8004) 8004 Prototype IDs (20) 400 Alien Tech Used (0) 0 Bonus (5161) 5161 TOTAL SCORE: 18545 Bonus ------- High Alert Combat Kills 2088 Follower Combat Kills 213 Entered Garrisons 400 Met Imprinter 300 Destroyed Z-Imprinter 1000 Triggered Deep Caves Wall 500 Exposed GOLEM Chamber 500 Acquired ECA 300 Friendly Fire -140 Cogmind --------- Core Integrity 0/700 Matter 229/300 Energy 95/100 System Corruption 0% Temperature Cool (6) Movement Core (50) Location -7/Deep Caves Parts ------- > --- POWER (1) -------- (None) > --- PROPULSION (4) --- Assembled Alloy Leg > --- UTILITY (5) ------ Improved Signal Interpreter Improved Target Analyzer Core Analyzer GOLEM Unit > --- WEAPON (3) ------- (None) > --- INVENTORY (5) ---- Zionite Composite Leg I Improved Cooling System Makeshift System Shield Plasma Cannon Cooled Particle Cannon Peak State ------------ > --- POWER ------------ Cooled Ion Engine > --- PROPULSION ------- Carbon-fiber Leg Makeshift Leg Zionite Composite Leg I Enhanced Flexi-carbon Leg > --- UTILITY ---------- Experimental Heat Sink High-capacity Storage Unit Improved Signal Interpreter Improved Target Analyzer Core Analyzer > --- WEAPON ----------- Cooled Pulse Rifle Cooled Pulse Rifle Cooled Particle Cannon > --- INVENTORY -------- Improved Cooling System Zionite Biocell Improved Sensor Array Encrypted Comm Array Core Analyzer Zionite Weapon Casing Improved Medium Armor Plating EM Disruption Field Makeshift System Shield Lightning Gun Zionite Laser-S Improved EM Pulse Cannon Improved EM Pulse Cannon Plasma Cannon Missile Launcher Heavy Missile Launcher RU-N14's Throwing Claymores RU-N14's Throwing Claymores RU-N14's Throwing Claymores Heavy Mace [Rating: 67] Favorites ----------- Power Cooled Ion Engine Engine Cooled Ion Engine Power Core Light Nuclear Core Reactor Zionite Light DM Reactor Propulsion Light Treads Treads Light Treads Leg Aluminum Leg Hover Unit Zionite Glidesys I Utility Improved Signal Interpreter Device Improved Sensor Array Storage High-capacity Storage Unit Processor Improved Signal Interpreter Hackware System Shield Protection Light Armor Plating Weapon Plasma Cannon Energy Gun Cooled Pulse Rifle Energy Cannon Plasma Cannon Ballistic Gun High-powered Shotgun Ballistic Cannon Flak Cannon Launcher Rocket Launcher Special Weapon RU-N14's Throwing Claymores Impact Weapon Heavy Mace Slashing Weapon Katana Build | -11 -10 -10 -10 -9 -8 -8 -8 -8 -7 -7 -7 -7 -7 ------- Run | Yrd Mat Min Exi Min Mat Gar Mat Gar Fac Low Low Zio Dee Slots Evolved 6 | . . . . . 4 . . . 2 . . . . Power . | . . . . . . . . . . . . . . Propulsion 2 | . . . . . 2 . . . . . . . . Utility 3 | . . . . . 2 . . . 1 . . . . Weapon 1 | . . . . . . . . . 1 . . . . Parts Attached 111 | 8 5 1 . . 20 20 6 10 12 4 2 5 18 Power 9 | 1 2 . . . 2 1 . 1 . . . . 2 Engine 7 | 1 2 . . . 1 1 . 1 . . . . 1 Core 1 | . . . . . 1 . . . . . . . . Reactor 1 | . . . . . . . . . . . . . 1 Propulsion 38 | 3 . 1 . . 8 11 2 4 2 1 . 1 5 Treads 24 | 2 . 1 . . 3 11 2 4 . . . . 1 Leg 13 | 1 . . . . 5 . . . 2 1 . 1 3 Wheel . | . . . . . . . . . . . . . . Hover 1 | . . . . . . . . . . . . . 1 Flight . | . . . . . . . . . . . . . . Utility 26 | 2 2 . . . 4 2 1 1 1 3 1 . 9 Device 12 | 1 . . . . 2 1 1 . . 3 . . 4 Storage 4 | 1 1 . . . 1 . . . . . . . 1 Processor 5 | . . . . . 1 1 . 1 . . 1 . 1 Hackware 1 | . . . . . . . . . 1 . . . . Protection 4 | . 1 . . . . . . . . . . . 3 Artifact . | . . . . . . . . . . . . . . Weapon 38 | 2 1 . . . 6 6 3 4 9 . 1 4 2 Energy Gun 8 | 2 . . . . 1 . . . 2 . . 1 2 Energy Cannon 10 | . . . . . . 4 1 1 3 . 1 . . Ballistic Gun 8 | . 1 . . . 3 2 2 . . . . . . Ballistic Cannon 5 | . . . . . . . . 2 3 . . . . Launcher 2 | . . . . . 1 . . . 1 . . . . Special Weapon 3 | . . . . . . . . . . . . 3 . Impact Weapon 1 | . . . . . . . . 1 . . . . . Slashing Weapon 1 | . . . . . 1 . . . . . . . . Piercing Weapon . | . . . . . . . . . . . . . . Special Melee Weapon . | . . . . . . . . . . . . . . Unidentified Prototypes 19 | . . . . . 3 . 1 . 4 . . 1 10 Parts Lost 47 | . 4 1 . . 4 9 1 10 3 . . . 15 Power 7 | . 2 . . . 1 1 . 1 . . . . 2 Propulsion 20 | . . 1 . . 1 4 . 5 2 . . . 7 Utility 7 | . 1 . . . 1 . . 1 1 . . . 3 Weapon 13 | . 1 . . . 1 4 1 3 . . . . 3 Highest Loss Streak 11 | . 3 1 . . 3 6 1 4 1 . . . 11 To Critical Strikes 1 | . . . . . . 1 . . . . . . . Average Backups 16 | 1 4 4 5 9 14 19 17 18 17 20 20 19 19 Power 1 | . 1 . 1 3 2 2 2 1 1 1 1 1 . Propulsion 1 | . . . . . 1 3 . . . . . 1 1 Utility 6 | . 1 2 2 2 3 4 7 7 8 9 8 6 6 Weapon 7 | . 1 2 2 2 7 8 8 8 7 9 9 9 10 Tool/Special . | . . . . . . . . . . . . . . Unused Backups 24 | . 1 . . . 8 . 2 . 2 2 1 2 6 Power 5 | . . . . . 5 . . . . . . . . Propulsion 1 | . . . . . . . . . . . . . 1 Utility 9 | . 1 . . . 1 . . . . 1 1 2 3 Weapon 9 | . . . . . 2 . 2 . 2 1 . . 2 Tool/Special . | . . . . . . . . . . . . . . Average Slot Usage (%) 97 | . 95 98 100 100 85 99 98 96 94 96 100 99 98 Engine 8 | . 13 14 14 14 4 8 9 9 7 7 7 7 6 Treads 20 | . 28 26 28 28 20 35 34 32 15 7 7 3 . Leg 10 | . . . . . 11 . . . 11 19 23 26 28 Device 7 | . 8 . . . 8 10 9 6 7 7 7 7 6 Storage 8 | . 14 14 14 14 9 9 9 9 7 7 7 7 7 Processor 14 | . . . . . 5 16 18 20 15 15 20 23 23 Hackware 1 | . . . . . . . . . 4 7 2 . . Protection 1 | . 1 14 14 14 3 . . . . . . . . Energy Gun 3 | . 22 14 14 14 1 . . . . . . 6 11 Energy Cannon 8 | . . . . . . 3 1 2 17 22 23 16 6 Ballistic Gun 7 | . 5 14 14 14 15 14 16 13 . . . . . Peak Build Rating 67 | 7 8 8 8 9 30 33 32 33 42 47 49 59 67 Average Rating 34 | 5 6 7 7 8 21 31 30 31 38 43 46 50 59 On Entrance 25 | . 7 8 7 8 9 30 31 32 30 41 46 47 54 Naked Turns . | . . . . . . . . . . . . . . Heaviest Build 73 | 12 29 29 29 29 61 67 67 65 72 70 70 73 73 Greatest Support 87 | 40 40 40 40 40 80 80 80 80 60 45 45 65 87 Greatest Overweight (x) 3 | 3 . 1 . . 2 . . 1 2 2 1 1 1 Average Overweight (x) . | . . . . . . . . . 1 1 1 . . Largest Inventory Capacity 20 | 8 15 15 15 15 20 20 20 20 20 20 20 20 20 Average Capacity 18 | 7 14 15 15 15 16 20 20 20 20 20 20 20 19 Most Carried 20 | 4 7 5 7 10 20 20 20 20 20 20 20 20 20 Average Carried 16 | 1 4 4 5 9 14 19 17 18 17 20 19 19 19 Final Capacity 20 | 8 15 15 15 15 20 20 20 20 20 20 20 20 5 Final Carried 20 | 4 5 4 7 10 20 13 20 17 20 20 20 20 5 Class Distribution -------------------- 54% | Mutant 22% | Gunner 14% | Skirmisher 4% | Scavenger-Skirmisher Dominant Class ---------------- Mutant | -10/Materials Mutant | -10/Mines Mutant | -10/Exiles Mutant | -9/Mines Mutant | -8/Materials Mutant | -8/Garrison Mutant | -8/Materials Mutant | -8/Garrison Scavenger-Skirmisher | -7/Factory Skirmisher | -7/Lower Caves Gunner | -7/Lower Caves Gunner | -7/Zion Gunner | -7/Deep Caves Resources | -11 -10 -10 -10 -9 -8 -8 -8 -8 -7 -7 -7 -7 -7 ----------- Run | Yrd Mat Min Exi Min Mat Gar Mat Gar Fac Low Low Zio Dee Matter Collected 4410 | 247 86 42 . . 624 1011 476 796 527 103 158 10 330 Remotely . | . . . . . . . . . . . . . . Salvage Created 5433 | 31 324 43 . 31 533 1165 696 1122 581 291 123 . 493 Parts 332 | 8 16 2 . 2 40 90 60 63 30 8 3 . 10 Haulers Intercepted 7 | . 1 . . . 2 . 3 . 1 . . . . Recyclers Shooed 2 | . . . . 1 . . 1 . . . . . . Parts Field Recycled . | . . . . . . . . . . . . . . Retrieved Matter . | . . . . . . . . . . . . . . Parts Self-Destructed 12 | . . . . . . . . . . 8 4 . . Prevented . | . . . . . . . . . . . . . . Kills | -11 -10 -10 -10 -9 -8 -8 -8 -8 -7 -7 -7 -7 -7 ------- Run | Yrd Mat Min Exi Min Mat Gar Mat Gar Fac Low Low Zio Dee Combat Hostiles Destroyed 186 | . 8 1 . . 17 47 14 36 12 5 2 . 44 Melee 1 | . . . . . 1 . . . . . . . . Guns 89 | . 8 1 . . 8 30 8 32 . . . . 2 Cannons 23 | . . . . . . . . 1 10 5 2 . 5 AOE 71 | . . . . . 8 16 6 3 2 . . . 36 Classes Destroyed 20 | 1 3 . . 2 5 2 2 2 . . . . 3 Worker 8 | . . . . 1 2 . 3 . 2 . . . . Builder 1 | . . . . . 1 . . . . . . . . Tunneler 3 | 2 . . . . . . 1 . . . . . . Hauler 7 | . 1 . . . 2 . 3 . 1 . . . . Recycler 1 | . . . . 1 . . . . . . . . . Operator 2 | . . . . . 1 . 1 . . . . . . Watcher 6 | . . . . . 1 . 2 . 3 . . . . Swarmer 46 | . 3 . . . 8 23 . 9 3 . . . . Grunt 44 | . 5 1 . . 5 8 6 12 4 3 . . . Brawler 2 | . . . . . . . 2 . . . . . . Duelist 8 | . . . . . 1 . 1 5 . . 1 . . Protector 2 | . . . . . . . 2 . . . . . . Sentry 25 | . . . . . 3 12 3 3 2 1 1 . . Specialist 3 | . . . . . . . . 3 . . . . . Hunter 2 | . . . . . . . . 1 . 1 . . . Programmer 9 | . . . . . . 3 . 3 3 . . . . Behemoth 1 | . . . . . . 1 . . . . . . . Z-Light 3 | . . . . . . . . . . . . . 3 Assembled 39 | . . . . . . . . . . . . . 39 Golem 1 | . . . . . . . . . . . . . 1 Butcher 1 | . . . . . . . . 1 . . . . . Best Kill Streak 38 | 2 3 1 . 1 4 10 7 7 4 3 2 . 38 Combat Bots Only 38 | . 3 1 . . 4 10 5 7 3 3 2 . 38 Max Kills in Single Turn 21 | 2 1 1 . 1 4 4 2 2 2 1 1 . 21 Gunslinging 1 | . . . . . . 1 . 1 . . . . . Exploded 20 | . . . . . 4 4 2 2 2 . . . 20 Melee 1 | . . . . . 1 . . . . . . . . Uniques/NPCs Destroyed 1 | . . . . . . . . . . . . . 1 Z-Imprinter (-7/Deep Caves) Combat | -11 -10 -10 -10 -9 -8 -8 -8 -8 -7 -7 -7 -7 -7 -------- Run | Yrd Mat Min Exi Min Mat Gar Mat Gar Fac Low Low Zio Dee Hostile Shots Fired 824 | . 52 6 . . 71 194 37 183 131 18 24 . 108 Missed 262 | . 16 1 . . 15 59 12 46 58 10 12 . 33 Hits 562 | . 36 5 . . 56 135 25 137 73 8 12 . 75 Melee 15 | . . . . . 5 . 1 3 . . . . 6 Projectile 547 | . 36 5 . . 51 135 24 134 73 8 12 . 69 Critical Strikes 14 | . . . . . 2 4 1 7 . . . . . Part Disruptions 1 | . . . . . . . . 1 . . . . . Damage Taken 8495 | . 510 86 . . 875 1865 412 1549 555 100 85 . 2458 Core 1278 | . 125 . . . 73 140 40 188 62 . . . 650 Absorbed by Shields 851 | . . . . . 40 284 56 355 116 . . . . Regen/Repaired (Parts) 462 | . . . . . . . 462 . . . . . . Core Remaining (%) 56 | 100 . . . 50 . . . 19 . . . . . Volleys Fired 404 | 1 42 5 . . 51 101 39 86 34 10 5 1 29 Largest 3 | 2 2 2 . . 2 2 2 2 3 3 3 1 3 Hottest 240 | 80 80 60 . . 60 138 138 105 240 240 240 80 210 Shots Fired 771 | 2 83 10 . . 90 164 72 150 82 27 15 1 75 Gun 517 | 2 83 10 . . 87 116 56 128 . 2 . . 33 Cannon 216 | . . . . . . 39 8 18 81 25 15 1 29 Launcher 25 | . . . . . 3 9 8 4 1 . . . . Special 13 | . . . . . . . . . . . . . 13 Kinetic 431 | . 10 5 . . 79 116 56 131 34 . . . . Thermal 197 | 1 42 5 . . 8 . . 12 47 27 15 1 39 Explosive 38 | . . . . . 3 9 8 4 1 . . . 13 Electromagnetic 105 | 1 31 . . . . 39 8 3 . . . . 23 Robot Hit Streak 21 | 1 16 6 . . 10 20 21 14 7 18 19 . 11 Robot Miss Streak 13 | . 6 2 . . 6 13 4 7 12 1 3 . 6 Penetration Max . | . . . . . . . . . . . . . . Secondary Targets 14 | . . . . . 1 7 . 6 . . . . . Max Gunslinging Chain 1 | . . . . . 1 1 . 1 . . . . . Shots Hit Robots 495 | 1 55 7 . . 69 105 47 92 58 18 7 . 36 Core Hits 381 | 2 15 3 . . 38 76 48 83 44 10 5 . 57 Critical Kills 2 | . . . . . . . . 2 . . . . . Critical Parts Destroyed . | . . . . . . . . . . . . . . Critical Strikes 6 | . . . . . 2 . . 2 . . . . 2 Burn 1 | . . . . . . . . . . . . . 1 Destroy 2 | . . . . . . . . 2 . . . . . Sever 3 | . . . . . 2 . . . . . . . 1 Melee Attacks 10 | . . . . . 8 . . 2 . . . . . Impact 2 | . . . . . . . . 2 . . . . . Slashing 8 | . . . . . 8 . . . . . . . . Piercing . | . . . . . . . . . . . . . . Sneak Attacks 3 | . . . . . 3 . . . . . . . . Combat Hostiles . | . . . . . . . . . . . . . . Follow-up Attacks . | . . . . . . . . . . . . . . Damage Inflicted 17459 | 24 766 80 . 13 1816 3254 1865 2510 1574 469 179 . 4909 Guns 6643 | 24 677 80 . . 1148 1684 805 1936 . . . . 289 Cannons 2751 | . . . . . . 255 155 20 1369 469 179 . 304 Explosions 7335 | . 89 . . . 387 1315 905 554 194 . . . 3891 Melee 273 | . . . . . 273 . . . . . . . . Ramming 35 | . . . . 13 8 . . . 11 . . . 3 Kinetic 6215 | . 92 47 . . 1127 1684 805 1956 504 . . . . Thermal 2375 | 11 385 33 . . 21 61 . . 865 469 179 . 351 Explosive 7185 | . . . . . 387 1254 905 554 194 . . . 3891 Electromagnetic 954 | 13 289 . . . . 255 155 . . . . . 242 Impact . | . . . . . . . . . . . . . . Slashing 695 | . . . . . 273 . . . . . . . 422 Piercing . | . . . . . . . . . . . . . . Highest Corruption 7 | . . . . . 1 2 2 7 1 1 1 1 . Average Corruption 2 | . . . . . 1 1 2 6 1 1 1 1 . Corruption Purged . | . . . . . . . . . . . . . . Corruption Blocked . | . . . . . . . . . . . . . . Effects 122 | . . . . . 10 16 17 56 4 15 4 . . Message Errors 27 | . . . . . 2 5 3 14 1 1 1 . . Matter Fused 25 | . . . . . 4 5 4 8 1 3 . . . Heat Flow Errors 7 | . . . . . . . 1 5 . . 1 . . Energy Discharges 19 | . . . . . 2 1 2 10 1 2 1 . . Parts Fused 1 | . . . . . . . . . . 1 . . . Data Loss (minor) 26 | . . . . . 1 3 5 9 1 6 1 . . Data Loss (major) 6 | . . . . . . 1 . 4 . 1 . . . Misfires 7 | . . . . . 1 1 2 2 . 1 . . . Alerts 3 | . . . . . . . . 3 . . . . . Weapon Failures 1 | . . . . . . . . 1 . . . . . Overload Shots 11 | . . . . . . . . . . 2 . . 9 Effects 1 | . . . . . . . . . . . . . 1 Heat Surge 1 | . . . . . . . . . . . . . 1 Overflow Damage 238 | . . . . . . 97 13 19 38 . . . 71 Projectiles 67 | . . . . . . . 13 . 38 . . . 16 Explosions 171 | . . . . . . 97 . 19 . . . . 55 Melee . | . . . . . . . . . . . . . . Knockbacks 4 | . . . . . . . . 1 3 . . . . Impact . | . . . . . . . . . . . . . . Kinetic 4 | . . . . . . . . 1 3 . . . . Secondary . | . . . . . . . . . . . . . . Self-Inflicted Damage 323 | . 95 . . . . 96 61 70 . . . . 1 Shots 10 | . 2 . . . . 3 2 3 . . . . . Rammed 4 | . . . . 1 . . . . 2 . . . 1 Targets Rammed 7 | . . . . 3 1 . . . 2 . . . 1 Kicked . | . . . . . . . . . . . . . . Crushed 3 | . . . . 2 1 . . . . . . . . Highest Temperature 441 | 18 261 90 . . 9 266 232 267 441 420 384 18 239 Average Temperature 92 | 12 88 48 . . 2 76 82 79 105 131 157 13 91 Received Heat Transfer 2082 | . 192 45 . . 320 384 167 421 147 51 24 . 331 Effects 6 | . 2 . . . . 1 . . 1 1 1 . . Shutdowns 1 | . . . . . . . . . 1 . . . . Energy Bleed 3 | . 1 . . . . 1 . . . 1 . . . Interference 1 | . 1 . . . . . . . . . . . . Matter Decay 1 | . . . . . . . . . . . 1 . . Siege Activations . | . . . . . . . . . . . . . . Martial Activations . | . . . . . . . . . . . . . . Shielding Activations . | . . . . . . . . . . . . . . Robots Disrupted . | . . . . . . . . . . . . . . Combat Hostiles . | . . . . . . . . . . . . . . Robots Corrupted 2 | . . . . . . 1 . . . . . . 1 Combat Hostiles 2 | . . . . . . 1 . . . . . . 1 Parts Fried 5 | . . . . . . 2 2 . . . . . 1 Impact Corruptions . | . . . . . . . . . . . . . . Robots Melted . | . . . . . . . . . . . . . . Combat Hostiles . | . . . . . . . . . . . . . . Parts Melted 16 | . 2 . . . . . . . 5 4 . . 5 Heat Transferred 4528 | 25 775 75 . . 50 50 . . 1600 900 350 . 703 Parts Sabotaged . | . . . . . . . . . . . . . . Parts Stolen . | . . . . . . . . . . . . . . Parts Stripped . | . . . . . . . . . . . . . . Power Chain Reactions 3 | . 2 . . . . 1 . . . . . . . Alert | -11 -10 -10 -10 -9 -8 -8 -8 -8 -7 -7 -7 -7 -7 ------- Run | Yrd Mat Min Exi Min Mat Gar Mat Gar Fac Low Low Zio Dee Maximum Alert Level 5 | . . . . . . 5 3 5 3 . . . . Low Security (%) 34 | 100 100 100 . 100 100 3 . . . . . . . Level 1 1 | . . . . . . 7 . . . . . . . Level 2 6 | . . . . . . 18 1 12 . . . . . Level 3 32 | . . . . . . 18 98 16 100 . . . . Level 4 14 | . . . . . . 32 . 38 . . . . . Level 5 10 | . . . . . . 19 . 32 . . . . . High Security . | . . . . . . . . . . . . . . Max Security . | . . . . . . . . . . . . . . Peak Influence 1937 | 10 80 30 . 5 152 1870 980 1937 1016 . . . . Initial 1016 | . . . . . . 96 906 629 1016 . . . . Average 711 | 1 25 6 . . 51 1047 848 1283 910 . . . . Influence Increases 5228 | 10 256 30 . 10 612 1854 530 1408 358 120 40 . . Destroy 0b10 Robot/C 2880 | . 160 20 . . 420 940 240 720 240 100 40 . . Destroy 0b10 Robot/NC 155 | 10 5 . . 10 40 . 60 . 30 . . . . Destroy Leader 346 | . 32 10 . . 76 20 70 40 78 20 . . . Allied During Kill 13 | . . . . . 12 . . 1 . . . . . Successful Hack 139 | . 47 . . . 32 14 25 21 . . . . . Disable Machine 105 | . . . . . 15 15 45 30 . . . . . Anti-Garrison Action 1150 | . . . . . . 700 . 450 . . . . . Destroy Structure 320 | . 12 . . . 17 135 75 71 10 . . . . Lose Combat Pursuer 120 | . . . . . . 30 15 75 . . . . . Influence Decreases 5228 | 10 256 30 . 10 464 142 1422 439 1441 885 129 . . Entered New Map 2600 | . . . . . . 52 954 339 921 317 17 . . Time Decay 2281 | 10 216 30 . 10 387 . 458 . 490 568 112 . . Lost Part 287 | . 40 . . . 17 90 10 100 30 . . . . Lost Ally 60 | . . . . . 60 . . . . . . . . Squads Dispatched 10 | . 1 . . . 1 . 3 . 5 . . . . Investigation . | . . . . . . . . . . . . . . Extermination 2 | . . . . . . . . . 2 . . . . Reinforcement 2 | . 1 . . . . . 1 . . . . . . Assault 3 | . . . . . . . 2 . 1 . . . . Garrison 3 | . . . . . 1 . . . 2 . . . . Intercept . | . . . . . . . . . . . . . . Searches Triggered . | . . . . . . . . . . . . . . Construction Impeded . | . . . . . . . . . . . . . . Haulers Reinforced . | . . . . . . . . . . . . . . Active Scanning Responses . | . . . . . . . . . . . . . . Cargo Convoy Interrupts . | . . . . . . . . . . . . . . Stealth | -11 -10 -10 -10 -9 -8 -8 -8 -8 -7 -7 -7 -7 -7 --------- Run | Yrd Mat Min Exi Min Mat Gar Mat Gar Fac Low Low Zio Dee Distress Signals 5 | . 1 . . . 2 . 1 . 1 . . . . Communications Jammed . | . . . . . . . . . . . . . . Distress Signals . | . . . . . . . . . . . . . . Times Spotted 209 | . 13 1 . . 26 48 22 36 23 4 3 . 33 Peak Tracking Total 27 | . 3 2 . . 4 7 5 7 5 2 3 . 27 Tactical Retreats 7 | . . . . . . 2 1 4 . . . . . Traps | -11 -10 -10 -10 -9 -8 -8 -8 -8 -7 -7 -7 -7 -7 ------- Run | Yrd Mat Min Exi Min Mat Gar Mat Gar Fac Low Low Zio Dee Traps Triggered 9 | . . . . . 1 2 . 4 2 . . . . Indirectly . | . . . . . . . . . . . . . . Trap Hack Attempts . | . . . . . . . . . . . . . . Triggered . | . . . . . . . . . . . . . . Disarmed . | . . . . . . . . . . . . . . Reprogrammed . | . . . . . . . . . . . . . . Reused . | . . . . . . . . . . . . . . Traps Extracted . | . . . . . . . . . . . . . . Installed . | . . . . . . . . . . . . . . Triggered . | . . . . . . . . . . . . . . Machines | -11 -10 -10 -10 -9 -8 -8 -8 -8 -7 -7 -7 -7 -7 ---------- Run | Yrd Mat Min Exi Min Mat Gar Mat Gar Fac Low Low Zio Dee Machines Disabled 23 | . . . . . 1 8 3 6 . . . . 5 Max in Single Turn 3 | . . . . . 1 1 3 1 . . . . 1 Garrison Access 1 | . . . . . . . . . 1 . . . . Garrison Relay 11 | . . . . . . 7 . 4 . . . . . Machines Repaired . | . . . . . . . . . . . . . . Machines Dismantled . | . . . . . . . . . . . . . . Machines Sabotaged . | . . . . . . . . . . . . . . Overloaded Fab Kills . | . . . . . . . . . . . . . . Hacking | -11 -10 -10 -10 -9 -8 -8 -8 -8 -7 -7 -7 -7 -7 --------- Run | Yrd Mat Min Exi Min Mat Gar Mat Gar Fac Low Low Zio Dee Machines Accessed 35 | . 3 . . . 12 2 6 3 4 2 2 1 . Terminals 19 | . 2 . . . 8 2 3 3 1 . . . . Fabricators . | . . . . . . . . . . . . . . Repair Stations 3 | . . . . . 1 . 2 . . . . . . Recycling Units 4 | . 1 . . . 2 . . . 1 . . . . Scanalyzers 1 | . . . . . . . . . 1 . . . . Garrison Access 3 | . . . . . 1 . 1 . 1 . . . . Total Hacks 93 | . 9 . . . 38 4 17 6 9 4 2 4 . Successful 54 | . 7 . . . 20 1 11 3 2 4 2 4 . Failed 39 | . 2 . . . 18 3 6 3 7 . . . . Catastrophic 9 | . . . . . 4 2 1 1 1 . . . . Database Lockouts . | . . . . . . . . . . . . . . Manual 44 | . 7 . . . 28 . 2 . 2 . . 5 . Terminals 46 | . 4 . . . 23 4 7 6 2 . . . . Fabricators . | . . . . . . . . . . . . . . Repair Stations 10 | . . . . . 1 . 9 . . . . . . Recycling Units 20 | . 5 . . . 12 . . . 3 . . . . Scanalyzers 1 | . . . . . . . . . 1 . . . . Garrison Access 6 | . . . . . 2 . 1 . 3 . . . . Terminal Hacks 20 | . 1 . . . 3 1 2 3 . 4 2 4 . Record 3 | . . . . . . . . . . 3 . . . Part Schematic 4 | . . . . . . . . . . . . 4 . Robot Analysis 2 | . 1 . . . 1 . . . . . . . . Open Door 4 | . . . . . . . . 1 . 1 2 . . Emergency Access Points 2 | . . . . . . 1 . 1 . . . . . Terminal Index 1 | . . . . . . . 1 . . . . . . Garrison Index 1 | . . . . . 1 . . . . . . . . Locate Traps 1 | . . . . . 1 . . . . . . . . Hauler Manifests 1 | . . . . . . . 1 . . . . . . Patrol Navigation 1 | . . . . . . . . 1 . . . . . Fabricator Hacks . | . . . . . . . . . . . . . . Repair Station Hacks 7 | . . . . . . . 7 . . . . . . Scan Component 4 | . . . . . . . 4 . . . . . . Repair 3 | . . . . . . . 3 . . . . . . Recycling Unit Hacks 4 | . 1 . . . 2 . . . 1 . . . . Retrieve Components 4 | . 1 . . . 2 . . . 1 . . . . Scanalyzer . | . . . . . . . . . . . . . . Garrison Access Hacks 3 | . . . . . 1 . 1 . 1 . . . . Unlock Access 2 | . . . . . 1 . 1 . . . . . . Seal Access 1 | . . . . . . . . . 1 . . . . Unauthorized Hacks 20 | . 5 . . . 14 . 1 . . . . . . Terminals 11 | . 2 . . . 8 . 1 . . . . . . Track 1 | . . . . . 1 . . . . . . . . Botnet 7 | . 2 . . . 4 . 1 . . . . . . Operators 3 | . . . . . 3 . . . . . . . . Fabricators . | . . . . . . . . . . . . . . Repair Stations . | . . . . . . . . . . . . . . Recycling Units 9 | . 3 . . . 6 . . . . . . . . Monitor 1 | . . . . . 1 . . . . . . . . Reject 2 | . 1 . . . 1 . . . . . . . . Recyclers 3 | . 1 . . . 2 . . . . . . . . Mask 3 | . 1 . . . 2 . . . . . . . . Scanalyzers . | . . . . . . . . . . . . . . Garrison Access . | . . . . . . . . . . . . . . Data Cores Recovered 1 | . . . . . 1 . . . . . . . . Used . | . . . . . . . . . . . . . . Hacking Detections 26 | . 3 . . . 11 2 5 2 3 . . . . Full Trace Events 2 | . . . . . . 1 . 1 . . . . . Feedback Events . | . . . . . . . . . . . . . . Feedback Blocked . | . . . . . . . . . . . . . . Robot Schematics Acquired 3 | . . . . . . . . . . . . 3 . Robots Built . | . . . . . . . . . . . . . . Authchips . | . . . . . . . . . . . . . . Time . | . . . . . . . . . . . . . . Total Robot Build Rating . | . . . . . . . . . . . . . . Part Schematics Acquired 18 | . . . . . . . . . . . . 18 . Parts Built . | . . . . . . . . . . . . . . Authchips . | . . . . . . . . . . . . . . Time . | . . . . . . . . . . . . . . Total Part Build Rating . | . . . . . . . . . . . . . . Parts Repaired 3 | . . . . . . . 3 . . . . . . Time 105 | . . . . . . . 105 . . . . . . Parts Recycled . | . . . . . . . . . . . . . . Recycled Matter . | . . . . . . . . . . . . . . Retrieved Matter . | . . . . . . . . . . . . . . Retrieved Components 21 | . 10 . . . 9 . . . 2 . . . . Parts Scanalyzed . | . . . . . . . . . . . . . . Part Schematics Acquired . | . . . . . . . . . . . . . . Parts Damaged . | . . . . . . . . . . . . . . Bothacking | -11 -10 -10 -10 -9 -8 -8 -8 -8 -7 -7 -7 -7 -7 ------------ Run | Yrd Mat Min Exi Min Mat Gar Mat Gar Fac Low Low Zio Dee Used RIF Installer . | . . . . . . . . . . . . . . Robots Hacked . | . . . . . . . . . . . . . . Non-combat . | . . . . . . . . . . . . . . Combat . | . . . . . . . . . . . . . . Robot Hacks Applied . | . . . . . . . . . . . . . . Relay Couplers Released 49 | . . . . . . 33 . 16 . . . . . Machine Destruction 49 | . . . . . . 33 . 16 . . . . . Fabnet Peak Effective % . | . . . . . . . . . . . . . . Robots Rewired . | . . . . . . . . . . . . . . Allies Hacked . | . . . . . . . . . . . . . . Hacks Repelled . | . . . . . . . . . . . . . . Allies | -11 -10 -10 -10 -9 -8 -8 -8 -8 -7 -7 -7 -7 -7 -------- Run | Yrd Mat Min Exi Min Mat Gar Mat Gar Fac Low Low Zio Dee Total Allies 10 | . . . . 4 . . . 1 . . . 5 . Largest Group 5 | . . . . 3 3 . . 1 . . . 5 5 Highest-Rated Group 274 | . . . . 40 40 . . 25 . . . 274 274 Highest-Rated Ally 96 | . . . . 31 16 . . 25 . . . 96 96 Initial Warlord ECA Mod 122 | . . . . . . . 11 11 20 20 20 20 20 Total Orders . | . . . . . . . . . . . . . . Ally Attacks 75 | . . . . . 16 . . 4 . . . . 55 Total Damage 3220 | . . . . . 185 . . 66 . . . . 2969 Kills 17 | . . . . . 5 . . . . . . . 12 Allies Corrupted . | . . . . . . . . . . . . . . Allies Melted . | . . . . . . . . . . . . . . Intel | -11 -10 -10 -10 -9 -8 -8 -8 -8 -7 -7 -7 -7 -7 ------- Run | Yrd Mat Min Exi Min Mat Gar Mat Gar Fac Low Low Zio Dee Active Infowar (turns) 7873 | 9 411 . . . 835 18 955 88 857 1644 800 1591 665 Sensors 7453 | . . . . . 835 18 955 88 857 1644 800 1591 665 Seismic 420 | 9 411 . . . . . . . . . . . . Robot Analysis Total 2 | . 1 . . . 1 . . . . . . . . Derelict Logs Recovered 6 | . . . . 1 . . . . . 2 1 2 . Drone Launches . | . . . . . . . . . . . . . . Drone Recoveries . | . . . . . . . . . . . . . . Exploration | -11 -10 -10 -10 -9 -8 -8 -8 -8 -7 -7 -7 -7 -7 ------------- Run | Yrd Mat Min Exi Min Mat Gar Mat Gar Fac Low Low Zio Dee Turns Passed 15158 | 85 658 124 95 1135 1276 2225 1148 1901 1282 1710 831 1591 1097 Spaces Moved 7588 | 45 317 67 58 695 647 1127 533 862 454 723 407 967 686 Core 30 | 11 . . . . . . . . . . . . 19 Treads 4544 | 30 317 67 58 695 400 1127 533 862 452 . . . 3 Legs 3014 | 4 . . . . 247 . . . 2 723 407 967 664 Wheels . | . . . . . . . . . . . . . . Hover . | . . . . . . . . . . . . . . Flight . | . . . . . . . . . . . . . . Fastest Speed 50 | 50 160 160 160 160 120 162 162 162 240 196 196 130 50 Average Speed 171 | 149 160 162 160 160 149 162 162 181 240 217 196 162 131 Slowest Speed 260 | 200 160 240 160 160 260 162 163 243 260 260 196 200 240 Overloaded Moves . | . . . . . . . . . . . . . . Propulsion Burnouts . | . . . . . . . . . . . . . . Robots Hopped 1 | . . . . . . . . . . . . 1 . Potential Cave-ins . | . . . . . . . . . . . . . . Cave-ins Triggered . | . . . . . . . . . . . . . . Exploration Rate (%) 56 | 5 59 18 10 103 54 95 50 85 15 83 51 86 83 Regions Visited 13 Branch Regions 7 Pre-discovered Areas 2 | . . . . . . . . . . 1 . 1 . Known Exits Taken 6 | . . . . . 1 . 1 . 1 1 1 1 . Unknown Exits Taken 5 | 1 1 1 1 1 . . . . . . . . . Scrap Searched 13 | . . . . 2 . . . . . 5 4 2 . Spaces Dug 21 | . . . . . 12 . 8 . . 1 . . . Terrain Destroyed 239 | . 11 . . . 21 53 77 36 8 2 . . 31 Melee . | . . . . . . . . . . . . . . Projectile 6 | . . . . . . . . . . 2 . . 4 AOE 233 | . 11 . . . 21 53 77 36 8 . . . 27 Terrain Rammed . | . . . . . . . . . . . . . . Walls Destroyed . | . . . . . . . . . . . . . . Machines Disabled . | . . . . . . . . . . . . . . Actions | -11 -10 -10 -10 -9 -8 -8 -8 -8 -7 -7 -7 -7 -7 --------- Run | Yrd Mat Min Exi Min Mat Gar Mat Gar Fac Low Low Zio Dee Total 8909 | 58 386 72 60 716 849 1352 741 1042 571 838 428 981 815 Wait 510 | . 13 . . 16 69 71 127 56 39 91 2 . 26 Move 7574 | 44 316 66 57 694 647 1126 532 861 453 722 406 964 686 Hop 1 | . . . . . . . . . . . . 1 . Pick Up 99 | 5 7 . 3 3 26 4 14 5 11 2 3 2 14 Fast Attach 24 | 6 . . . . 5 . . 1 3 2 . 4 3 Attach 51 | 1 4 1 . . 4 9 2 8 3 . . . 19 Detach 3 | . . . . . . . . . . 1 . . 2 Swap 147 | 1 1 . . . 22 34 20 13 18 7 8 3 20 Drop 67 | . 3 . . . 16 7 7 . 6 3 4 6 15 Fire 404 | 1 42 5 . . 51 101 39 86 34 10 5 1 29 Melee 10 | . . . . . 8 . . 2 . . . . . Ram 1 | . . . . . . . . . . . . . 1 Kick . | . . . . . . . . . . . . . . Crush 6 | . . . . 3 1 . . . 2 . . . . Escape Stasis 10 | . . . . . . . . 8 2 . . . . Rewire 2 | . . . . . . . . 2 . . . . . Trap . | . . . . . . . . . . . . . . Miscellaneous . | . . . . . . . . . . . . . . Route ------- -11/Scrapyard -10/Materials (discovered 3 exits: [*Mat x2] / [*Min]) -10/Mines -10/Exiles -9/Mines (discovered 2 exits: *Mat x2) -8/Materials (discovered 2 exits: Fac / Gar) -8/Garrison (discovered 3 exits: *Mat x3) -8/Materials (discovered 3 exits: *Fac x2 / Gar) -8/Garrison (discovered 3 exits: *Fac x3) -7/Factory -7/Lower Caves -7/Lower Caves (discovered 2 exits: [*Fac] / *Zio) -7/Zion (discovered 2 exits: *Dee / [*Pro]) -7/Deep Caves (discovered 1 exit: *Pro) History --------- Turn | Location | Event 9 | -11/Scrapyard | Discovered new exit (range 16) 86 | -11/Scrapyard | Entered Materials 305 | -10/Materials | Build established: Mutant 333 | -10/Materials | Discovered new exit (range 16) 550 | -10/Materials | Lost 3 parts (1p1u1w) 574 | -10/Materials | Discovered new exit (range 16) 714 | -10/Materials | Discovered new exit (range 8) 744 | -10/Materials | Entered Mines 860 | -10/Mines | Discovered new exit (range 6) 868 | -10/Mines | Entered Exiles 908 | -10/Exiles | Met 8R-AWN 925 | -10/Exiles | Discovered new exit (range 15) 963 | -10/Exiles | Entered Mines 1002 | -9/Mines | Learned location of 1 exit from Materials 1161 | -9/Mines | Received a Rocket Launcher from a helpful Derelict 1256 | -9/Mines | Discovered new exit (range 7) 1477 | -9/Mines | Discovered new exit (range 9) 1536 | -9/Mines | Received a Mining Laser from a helpful Derelict 1840 | -9/Mines | Assisted by bots powering up and referring to "LRC-V3" 2098 | -9/Mines | Entered Materials 2098 | -8/Materials | Accompanied by 3 allies 2098 | -8/Materials | Evolved 4 slots: Propulsion x2, Utility x2 2099 | -8/Materials | Identified exit to Factory 2330 | -8/Materials | Lost 3 parts (1p1n1w) 2703 | -8/Materials | Build established: Scavenger-Mutant 3150 | -8/Materials | Build established: Mutant 3324 | -8/Materials | Garrison activated, responded to threat 3374 | -8/Materials | Identified exit to Garrison 3374 | -8/Materials | Entered Garrison 3495 | -8/Garrison | Destroyed 10 combat bots 3596 | -8/Garrison | Triggered checkpoint 3627 | -8/Garrison | Garrison Relay disabled 3788 | -8/Garrison | Triggered checkpoint 3896 | -8/Garrison | Triggered checkpoint 3913 | -8/Garrison | Garrison Relay disabled 4112 | -8/Garrison | Discovered new exit (range 12) 4128 | -8/Garrison | Identified exit to Materials 4240 | -8/Garrison | Triggered checkpoint 4328 | -8/Garrison | Triggered checkpoint 4449 | -8/Garrison | Destroyed 9 combat bots 4474 | -8/Garrison | Garrison Relay disabled 4496 | -8/Garrison | Garrison Relay disabled 4519 | -8/Garrison | Discovered exit to Materials (range 9) 4932 | -8/Garrison | Triggered checkpoint 5000 | -8/Garrison | Triggered checkpoint 5058 | -8/Garrison | Garrison Relay disabled 5109 | -8/Garrison | Discovered exit to Materials (range 14) 5398 | -8/Garrison | Spotted B-75 Beast 5490 | -8/Garrison | Destroyed B-75 Beast 5493 | -8/Garrison | Lost 6 parts (4n2w) 5526 | -8/Garrison | Garrison Relay disabled 5599 | -8/Garrison | Entered Materials 5989 | -8/Materials | Discovered exit to Factory (range 10) 6200 | -8/Materials | Repaired Broken Hpw. Shotgun? 6272 | -8/Materials | Repaired Lgt. Treads 6299 | -8/Materials | Repaired Huge Storage Unit 6399 | -8/Materials | First assault squad dispatched 6564 | -8/Materials | Discovered exit to Factory (range 10) 6745 | -8/Materials | Identified exit to Garrison 6747 | -8/Materials | Entered Garrison 6961 | -8/Garrison | Triggered checkpoint 7074 | -8/Garrison | Garrison Relay disabled 7158 | -8/Garrison | Core integrity fell below 50% 7296 | -8/Garrison | Lost 4 parts (1p2n1u) 7339 | -8/Garrison | Destroyed 7 combat bots 7341 | -8/Garrison | Triggered checkpoint 7398 | -8/Garrison | Discovered exit to Factory (range 10) 7439 | -8/Garrison | Triggered checkpoint 7482 | -8/Garrison | Garrison Relay disabled 7534 | -8/Garrison | Rescued a captive Derelict 7691 | -8/Garrison | Triggered checkpoint 7787 | -8/Garrison | Garrison Relay disabled 7812 | -8/Garrison | Discovered exit to Factory (range 8) 8031 | -8/Garrison | Triggered checkpoint 8231 | -8/Garrison | Triggered checkpoint 8380 | -8/Garrison | Discovered exit to Factory (range 10) 8491 | -8/Garrison | Triggered checkpoint 8538 | -8/Garrison | Core integrity fell below 20% 8592 | -8/Garrison | Garrison Relay disabled 8648 | -8/Garrison | Entered Factory 8648 | -7/Factory | Evolved 2 slots: Utility x1, Weapon x1 8829 | -7/Factory | Garrison activated, responded to threat 9276 | -7/Factory | Build established: Scavenger-Skirmisher 9614 | -7/Factory | Discovered new exit (range 5) 9623 | -7/Factory | Identified exit to Lower Caves 9848 | -7/Factory | First assault squad dispatched 9930 | -7/Factory | Entered Lower Caves 9947 | -7/Lower Caves | Met a Warlord Commander 9948 | -7/Lower Caves | Learned location of Warlord (-4) 9949 | -7/Lower Caves | Warlord Commander delivered Encrypted Comm Array 9954 | -7/Lower Caves | Found Encrypted Comm Array 9974 | -7/Lower Caves | Learned 8 Factory zone layouts 10244 | -7/Lower Caves | Build established: Skirmisher 10374 | -7/Lower Caves | Entered an active Warlord outpost 10848 | -7/Lower Caves | Attracted the attention of an 0b10 checkpoint 10918 | -7/Lower Caves | Learned Factory trap positions 11589 | -7/Lower Caves | Discovered new exit (range 13) 11636 | -7/Lower Caves | Identified exit to Lower Caves 11640 | -7/Lower Caves | Entered another Lower Caves area 11642 | -7/Lower Caves | Discovered new exit (range 12) 11943 | -7/Lower Caves | Attracted the attention of an 0b10 checkpoint 12045 | -7/Lower Caves | Identified exit to Zion 12181 | -7/Lower Caves | Build established: Gunner 12430 | -7/Lower Caves | Found DCF Scrap (13 items) 12471 | -7/Lower Caves | Entered Zion 12589 | -7/Zion | Acquired unknown access codes intercepted by a Zionite 12607 | -7/Zion | Given A8's code to call for help 12613 | -7/Zion | Discovered new exit (range 16) 12785 | -7/Zion | System corruption cleaned by Quarantine Array 13026 | -7/Zion | Identified exit to Deep Caves 13412 | -7/Zion | Found Prototype Special Weapon 13412 | -7/Zion | Identified RU-N14's Throwing Claymores 13416 | -7/Zion | Found RU-N14's Throwing Claymores 13421 | -7/Zion | Found RU-N14's Throwing Claymores 13579 | -7/Zion | Gained Derelict followers 13858 | -7/Zion | Met Imprinter 13990 | -7/Zion | Opened final containment barrier to the Deep Caves 14009 | -7/Zion | Enhanced Grunt warped into view, answering call for help 14011 | -7/Zion | Enhanced Grunt warped into view, answering call for help 14052 | -7/Zion | Saw the warning signs outside the Deep Caves entrance 14062 | -7/Zion | Entered Deep Caves 14062 | -7/Deep Caves | Accompanied by 5 allies 14327 | -7/Deep Caves | Z-Facility disabled 14384 | -7/Deep Caves | Attacked by Z-Imprinter 14385 | -7/Deep Caves | Destroyed Z-Imprinter 14436 | -7/Deep Caves | Found Prototype Device 14436 | -7/Deep Caves | Identified Zio. Metafield Generator 14443 | -7/Deep Caves | Found Prototype Protection 14444 | -7/Deep Caves | Identified Zio. Weapon Casing 14577 | -7/Deep Caves | Lost 4 parts (1p3n) 14615 | -7/Deep Caves | Found Zio. Weapon Casing 14781 | -7/Deep Caves | Discovered new exit (range 6) 14786 | -7/Deep Caves | Identified exit to Proximity Caves 15071 | -7/Deep Caves | Spotted AG-37783 15083 | -7/Deep Caves | Destroyed AG-37783 15114 | -7/Deep Caves | Spotted AG-82611 15120 | -7/Deep Caves | Exposed GOLEM chamber 15121 | -7/Deep Caves | Triggered Deep Caves wall 15138 | -7/Deep Caves | Core integrity fell below 50% 15148 | -7/Deep Caves | Spotted AS-90420 15149 | -7/Deep Caves | Spotted AS-29219 15154 | -7/Deep Caves | Core integrity fell below 20% 15155 | -7/Deep Caves | Found GOLEM Unit 15159 | -7/Deep Caves | Destroyed by AG-82611 with Assembled Focal Cannon Last Messages --------------- Chamber. 15145_ Carbon-fiber Leg destroyed. 15146_ Imp. Medium Armor Plating destroyed. 15146_ Imp. EM Pulse Cannon destroyed. 15147_ Penetrated by Slug. 15147_ Cld. Ion Engine destroyed. 15147_ Dropped Hcp. Storage Unit. 15151_ GOLEM Unit springs to life. 15152_ as-91029 released from Mobile Assembly Unit. 15152_ as-68205 released from Mobile Assembly Unit. 15152_ AG-22735 GOLEM Unit beginning Prototype Leg integration. 15155_ Acquired GOLEM Unit. 15156_ GOLEM Unit beginning Asb. Alloy Leg integration. 15156_ Slammed into as-91029. 15156_ Penetrated by Slug. 15158_ Zio. Composite Leg I destroyed. Map ----- +----------------------------------------------------+ | ?????????????????????????????????????? | | ?????????????????????????????????????? | | ?????????????????????????????????????? | | ?????????????????????????????????????? | | ??????????????? ?#??#????????????????? | | ?????????? # ? ????????????????? | | ?????????? # # #???????????????? | | ????????? # #?##????????????? | | ?????????" # #? #????????????? | | ????????? #? #????????????? | | ????????""" #? #????????????? | | ????????" ## #????????????# | | ????????" ] # #####???????## | | ????????" G ???###### | | ????????# #????# | | ????????"G !] #????## | | ?????????" [!!###???# | | ?????????" ]!![/"#???# | | ???????""" !#####??## | | ???????" G #?# #??# | | ??????### a = h ### #### | | ??""""" a # # | | ??" % ##?# | | ??" A ### | | ??" a = # | | ??" @ ### | | ??" ### | | ??" a l= ### # | | ??" a #?# ### | | ??""""" A s = #?# ##?? | | ??????### == #?# #??? | | ????????"" = #?# #??? | | ?????????" ] #?## ##??? | | ?????????" * #??###???? | | ?????????" b ##???????? | | ?????????" g ] * * #???????? | | ????????? ] #???????? | | ????????? ! #??####?? | | ?????????G ! * #### ##? | | ????????" ! #? | | ?????????"" ! * ## | | ????????" !! | | ?????????" !%* "# | | ????????" !!! ### | | ?????????" "#?## | | ????????" # # "#??## | | ????????" #### ## ## ###???##### | | ?????????"" #????# ?# ####?????????? | | ?????????? ??????#??# #????????????? | | ???????????????????????#?????????????? | +----------------------------------------------------+ Best States ------------- Heat Dissipation 61 Energy Generation 23 Energy Capacity 880 Matter Stores 300 Matter Capacity 300 Sight Range 16 Robot Scan Range 15 Terrain Scan Density 10 Armor Coverage 225 Evasion (%) 55 Targeting Accuracy 8 Target Analysis 6 Core Analysis 6 Recoil Reduction 4 Defensive Hacking 10 Item Schematics ----------------- Riot Gun | -7/Zion | Free Slug Cannon | -7/Zion | Free Enh. Flamer | -7/Zion | Free Hvy. Battle Rifle | -7/Zion | Free Power Sword | -7/Zion | Archive Imp. Salvage Targeting Computer | -7/Zion | Archive Hvy. Laser | -7/Zion | Archive Hvy. Flak Cannon | -7/Zion | Archive Adv. Shield Generator | -7/Zion | Archive Med. Treads | -7/Zion | Archive Adv. Melee Analysis Suite | -7/Zion | Archive Imp. Medium Armor Plating | -7/Zion | Archive Hvy. Pick | -7/Zion | Archive Energy Filter | -7/Zion | Archive Lgt. Fission Core | -7/Zion | Archive Great Axe | -7/Zion | Archive EM Disruption Field | -7/Zion | Archive Lrn. Proton Cannon | -7/Zion | Archive Robot Schematics ------------------ L-41 Fighter | -7/Zion | Archive H-55 Commando | -7/Zion | Archive X-82 Rainmaker | -7/Zion | Archive Fabricated ------------ Nothing Repaired ---------- Hpw. Shotgun | 16% | -8/Materials | Broken Lgt. Treads | 33% | -8/Materials Huge Storage Unit | 56% | -8/Materials Alien Tech Used ----------------- None Achievements -------------- None Challenges ------------ None Game ------ Seed ReactionDirectedLegs Manual? 0 Play Time 01:28:41 Cumulative 326.6 hours Start 2025.07.30 @ 13:46:58 End 2025.07.30 @ 15:20:29 Sessions 1 Manual Loads 0 Difficulty Rogue Special Mode None Game No. 150 Rogue 136 Adventurer 14 Explorer 0 Win Type - Total 18 Types 15/0/1/1/0/0/0/0/1/0 Lore% 63 Gallery% 72 Achievement% 68 Wizard Run 0 Options --------- Layout 1 ASCII 0 Keyboard 0 Movement Arrows Keybinds 0 Fullscreen 1 Font 24/Smallcaps Map View 50x35 Zoom Use 0% Tactical HUD 1 Map Filters NONE Filters NONE Steam 1 RUN: dbda2491-bd09-4e6a-bc95-86c56eed7167